[Event "*** SCC Grand Prix: Titled Tuesday Blitz"]
[Site "Chess.com"]
[Date "2020.10.13"]
[Round "4"]
[White "tsvet2005"]
[Black "wonderfultime"]
[Result "0-1"]
[WhiteElo "2700"]
[BlackElo "2923"]
[TimeControl "180+1"]
[EndTime "10:39:19 PDT"]
[Termination "wonderfultime won by resignation"]

1. d4 {[%clk 0:03:00.9]} 1... d5 {[%clk 0:02:58.7]} 2. c4 {[%clk 0:03:01.3]}
2... c6 {[%clk 0:02:57.2]} 3. Nf3 {[%clk 0:03:01.2]} 3... Nf6 {[%clk 0:02:57.1]}
4. g3 {[%clk 0:03:01.5]} 4... Bf5 {[%clk 0:02:56.9]} 5. Nc3 {[%clk 0:03:01.7]}
5... e6 {[%clk 0:02:57.6]} 6. Nh4 {[%clk 0:03:01.5]} 6... Be4 {[%clk 0:02:58.1]}
7. f3 {[%clk 0:03:01.2]} 7... Bg6 {[%clk 0:02:59]} 8. Qb3 {[%clk 0:03:01.6]}
8... Qc8 {[%clk 0:02:51.9]} 9. e4 {[%clk 0:02:53.7]} 9... dxe4 {[%clk 0:02:49]}
10. Nxg6 {[%clk 0:02:53.6]} 10... hxg6 {[%clk 0:02:49.9]} 11. fxe4 {[%clk
0:02:51.9]} 11... e5 {[%clk 0:02:50.6]} 12. dxe5 {[%clk 0:02:40]} 12... Ng4
{[%clk 0:02:50.7]} 13. Bf4 {[%clk 0:02:40.3]} 13... Nd7 {[%clk 0:02:50.8]} 14.
e6 {[%clk 0:02:26.6]} 14... fxe6 {[%clk 0:02:51.7]} 15. Be2 {[%clk 0:02:22.6]}
15... Nge5 {[%clk 0:01:53.1]} 16. O-O-O {[%clk 0:02:16]} 16... Be7 {[%clk
0:01:53.1]} 17. h4 {[%clk 0:02:11.9]} 17... Bf6 {[%clk 0:01:45.9]} 18. g4 {[%clk
0:02:06.7]} 18... Qc7 {[%clk 0:01:42.4]} 19. Kb1 {[%clk 0:02:01.2]} 19... Qb6
{[%clk 0:01:42.6]} 20. Qxb6 {[%clk 0:01:54]} 20... axb6 {[%clk 0:01:43.5]} 21.
g5 {[%clk 0:01:50.2]} 21... Be7 {[%clk 0:01:44.1]} 22. h5 {[%clk 0:01:46.5]}
22... gxh5 {[%clk 0:01:39.2]} 23. Bxh5+ {[%clk 0:01:46.2]} 23... g6 {[%clk
0:01:39.8]} 24. Be2 {[%clk 0:01:40.9]} 24... O-O-O {[%clk 0:01:37.5]} 25. Na4
{[%clk 0:01:29]} 25... Bc5 {[%clk 0:01:08.5]} 26. a3 {[%clk 0:01:15.3]} 26...
Rxh1 {[%clk 0:01:01.4]} 27. Rxh1 {[%clk 0:01:16.2]} 27... Rf8 {[%clk 0:01:01.9]}
28. Bg3 {[%clk 0:01:09.3]} 28... Bf2 {[%clk 0:00:58.2]} 29. Bxe5 {[%clk
0:00:50.7]} 29... Nxe5 {[%clk 0:00:58.1]} 30. Rf1 {[%clk 0:00:51.1]} 30... Kc7
{[%clk 0:00:56.1]} 31. Nc3 {[%clk 0:00:49.3]} 31... Bc5 {[%clk 0:00:53]} 32. b4
{[%clk 0:00:22.7]} 32... Rxf1+ {[%clk 0:00:52.5]} 33. Bxf1 {[%clk 0:00:23.6]}
33... Be3 {[%clk 0:00:53.3]} 34. Bh3 {[%clk 0:00:23.7]} 34... Kd6 {[%clk
0:00:53.7]} 35. Kc2 {[%clk 0:00:21.5]} 35... Bxg5 {[%clk 0:00:53.3]} 36. Kb3
{[%clk 0:00:19.9]} 36... Be3 {[%clk 0:00:51.9]} 37. Nd1 {[%clk 0:00:18.9]} 37...
Bd4 {[%clk 0:00:51.8]} 38. Kc2 {[%clk 0:00:18.7]} 38... g5 {[%clk 0:00:51.7]}
39. Bf1 {[%clk 0:00:16.9]} 39... g4 {[%clk 0:00:50.8]} 40. a4 {[%clk 0:00:17.4]}
40... g3 {[%clk 0:00:50.8]} 41. a5 {[%clk 0:00:17.3]} 41... bxa5 {[%clk
0:00:50.8]} 42. bxa5 {[%clk 0:00:18.2]} 42... Nf3 {[%clk 0:00:49.8]} 43. Kd3
{[%clk 0:00:18.1]} 43... Bc5 {[%clk 0:00:49.3]} 44. Nc3 {[%clk 0:00:17.4]} 44...
g2 {[%clk 0:00:44.9]} 45. Bxg2 {[%clk 0:00:12.6]} 45... Ne1+ {[%clk 0:00:45.5]}
46. Ke2 {[%clk 0:00:13.5]} 46... Nxg2 {[%clk 0:00:46.4]} 47. Na4 {[%clk
0:00:13.5]} 47... Bd4 {[%clk 0:00:46.3]} 48. Kd3 {[%clk 0:00:12.7]} 48... e5
{[%clk 0:00:46]} 49. c5+ {[%clk 0:00:12.4]} 49... Bxc5 {[%clk 0:00:46.3]} 50.
Kc4 {[%clk 0:00:13.3]} 50... Bd4 {[%clk 0:00:46.9]} 51. a6 {[%clk 0:00:14.2]}
51... b5+ {[%clk 0:00:47]} 0-1

[Event "*** SCC Grand Prix: Titled Tuesday Blitz"]
[Site "Chess.com"]
[Date "2020.10.13"]
[Round "4"]
[White "ExtremeLearner"]
[Black "Mbneu"]
[Result "1-0"]
[WhiteElo "2412"]
[BlackElo "2250"]
[TimeControl "180+1"]
[EndTime "10:39:20 PDT"]
[Termination "ExtremeLearner won by resignation"]

1. d4 {[%clk 0:03:00.9]} 1... Nf6 {[%clk 0:02:56.9]} 2. Nf3 {[%clk 0:03:01.1]}
2... c5 {[%clk 0:02:56.8]} 3. d5 {[%clk 0:03:00.9]} 3... e6 {[%clk 0:02:56.8]}
4. dxe6 {[%clk 0:02:56.7]} 4... fxe6 {[%clk 0:02:56.2]} 5. c4 {[%clk 0:02:56.9]}
5... d5 {[%clk 0:02:50.2]} 6. e3 {[%clk 0:02:55.4]} 6... Nc6 {[%clk 0:02:40.3]}
7. cxd5 {[%clk 0:02:53.7]} 7... exd5 {[%clk 0:02:39.9]} 8. Nc3 {[%clk
0:02:54.1]} 8... d4 {[%clk 0:02:22.7]} 9. exd4 {[%clk 0:02:44.7]} 9... cxd4
{[%clk 0:02:22.3]} 10. Nb5 {[%clk 0:02:43.3]} 10... Bb4+ {[%clk 0:02:21.6]} 11.
Bd2 {[%clk 0:02:43.1]} 11... Qe7+ {[%clk 0:02:10.2]} 12. Qe2 {[%clk 0:02:39.3]}
12... Bxd2+ {[%clk 0:02:05.3]} 13. Nxd2 {[%clk 0:02:37.5]} 13... O-O {[%clk
0:01:45.1]} 14. Qxe7 {[%clk 0:02:33.8]} 14... Nxe7 {[%clk 0:01:46]} 15. Bc4+
{[%clk 0:02:34]} 15... Kh8 {[%clk 0:01:45.1]} 16. Nxd4 {[%clk 0:02:29.5]} 16...
Nf5 {[%clk 0:01:32.4]} 17. Nxf5 {[%clk 0:02:23.8]} 17... Bxf5 {[%clk 0:01:32.9]}
18. O-O {[%clk 0:02:23.8]} 18... Rac8 {[%clk 0:01:20.3]} 19. b3 {[%clk
0:02:23.4]} 19... a6 {[%clk 0:01:16.8]} 20. a4 {[%clk 0:02:22.8]} 20... Rc5
{[%clk 0:01:13.1]} 21. a5 {[%clk 0:02:17.7]} 21... Rd8 {[%clk 0:01:06.1]} 22.
Nf3 {[%clk 0:02:16.3]} 22... Be4 {[%clk 0:00:59.5]} 23. Rfd1 {[%clk 0:02:11.7]}
23... Rxd1+ {[%clk 0:00:58.6]} 24. Rxd1 {[%clk 0:02:12.6]} 24... h6 {[%clk
0:00:58.5]} 25. Nd2 {[%clk 0:02:08.2]} 25... Bc6 {[%clk 0:00:49.3]} 26. b4
{[%clk 0:01:44.4]} 26... Rg5 {[%clk 0:00:45.3]} 27. f3 {[%clk 0:01:40.7]} 27...
Nh5 {[%clk 0:00:40.7]} 28. Kf2 {[%clk 0:01:30.4]} 28... Nf4 {[%clk 0:00:35.5]}
29. Bf1 {[%clk 0:01:29.4]} 29... Rd5 {[%clk 0:00:31.2]} 30. g3 {[%clk 0:01:11]}
30... Ba4 {[%clk 0:00:29.5]} 31. Bc4 {[%clk 0:00:55.4]} 31... Rd8 {[%clk
0:00:26.8]} 32. Rc1 {[%clk 0:00:48.5]} 32... Rxd2+ {[%clk 0:00:22.8]} 33. Ke3
{[%clk 0:00:48]} 33... Rxh2 {[%clk 0:00:20.7]} 34. Kxf4 {[%clk 0:00:44.6]} 34...
Bc6 {[%clk 0:00:18.6]} 35. Rd1 {[%clk 0:00:36.6]} 35... Rf2 {[%clk 0:00:15.8]}
36. Rd8+ {[%clk 0:00:34.7]} 36... Kh7 {[%clk 0:00:15.5]} 37. Bg8+ {[%clk
0:00:28.7]} 37... Kg6 {[%clk 0:00:15]} 38. Rd6+ {[%clk 0:00:29.2]} 38... Kh5
{[%clk 0:00:13.7]} 39. Bf7+ {[%clk 0:00:30.1]} 1-0

[Event "*** SCC Grand Prix: Titled Tuesday Blitz"]
[Site "Chess.com"]
[Date "2020.10.13"]
[Round "4"]
[White "realmadridtv"]
[Black "MisiekZielony"]
[Result "1-0"]
[WhiteElo "2412"]
[BlackElo "2237"]
[TimeControl "180+1"]
[EndTime "10:39:22 PDT"]
[Termination "realmadridtv won on time"]

1. e4 {[%clk 0:03:00.9]} 1... Nf6 {[%clk 0:02:59.8]} 2. Nc3 {[%clk 0:02:57.9]}
2... d5 {[%clk 0:02:59.7]} 3. e5 {[%clk 0:02:57.7]} 3... Ne4 {[%clk 0:02:59.8]}
4. Nce2 {[%clk 0:02:57.9]} 4... Nc5 {[%clk 0:02:59.9]} 5. d4 {[%clk 0:02:54.1]}
5... Ne6 {[%clk 0:02:59.8]} 6. f4 {[%clk 0:02:52.4]} 6... g6 {[%clk 0:03:00.1]}
7. Nf3 {[%clk 0:02:51.7]} 7... Ng7 {[%clk 0:02:58.6]} 8. Be3 {[%clk 0:02:48.6]}
8... Bg4 {[%clk 0:02:54.7]} 9. Ng3 {[%clk 0:02:47.9]} 9... e6 {[%clk 0:02:48.6]}
10. c4 {[%clk 0:02:44.1]} 10... Bb4+ {[%clk 0:02:35]} 11. Kf2 {[%clk 0:02:41.5]}
11... Be7 {[%clk 0:02:34.3]} 12. Qb3 {[%clk 0:02:39.5]} 12... Bxf3 {[%clk
0:02:20.2]} 13. Kxf3 {[%clk 0:02:38.3]} 13... b6 {[%clk 0:02:09.9]} 14. cxd5
{[%clk 0:02:37.4]} 14... exd5 {[%clk 0:02:09.8]} 15. Bb5+ {[%clk 0:02:34.4]}
15... c6 {[%clk 0:02:09.5]} 16. Bd3 {[%clk 0:02:35]} 16... O-O {[%clk
0:01:57.7]} 17. f5 {[%clk 0:02:35.5]} 17... f6 {[%clk 0:01:51.2]} 18. Ke2 {[%clk
0:02:28.3]} 18... c5 {[%clk 0:01:47.4]} 19. dxc5 {[%clk 0:02:13.2]} 19... bxc5
{[%clk 0:01:46.1]} 20. exf6 {[%clk 0:02:07.9]} 20... Rxf6 {[%clk 0:01:12.6]} 21.
fxg6 {[%clk 0:02:06.5]} 21... c4 {[%clk 0:00:50.7]} 22. Bxc4 {[%clk 0:02:05.2]}
22... dxc4 {[%clk 0:00:50.7]} 23. Qxc4+ {[%clk 0:02:06.1]} 23... Kh8 {[%clk
0:00:50.3]} 24. Rad1 {[%clk 0:02:01.9]} 24... Qa5 {[%clk 0:00:45.3]} 25. gxh7
{[%clk 0:01:52.3]} 25... Nc6 {[%clk 0:00:37.9]} 26. Rd5 {[%clk 0:01:47.9]} 26...
Qc7 {[%clk 0:00:31.9]} 27. Ne4 {[%clk 0:01:45.9]} 27... Re6 {[%clk 0:00:30]} 28.
Rc1 {[%clk 0:01:43.4]} 28... Qxh2 {[%clk 0:00:26.5]} 29. Kf1 {[%clk 0:01:29.1]}
29... Rf8+ {[%clk 0:00:25.7]} 30. Bf2 {[%clk 0:01:28.2]} 30... Ne5 {[%clk
0:00:16.7]} 31. Rxe5 {[%clk 0:01:22.6]} 31... Rxe5 {[%clk 0:00:16.2]} 32. Ke2
{[%clk 0:01:20.1]} 32... Qh5+ {[%clk 0:00:15.5]} 33. Kd3 {[%clk 0:01:14.6]}
33... Qg4 {[%clk 0:00:15.4]} 34. Re1 {[%clk 0:01:09.1]} 34... Qxg2 {[%clk
0:00:14.8]} 35. Re3 {[%clk 0:01:01.3]} 35... Rd8+ {[%clk 0:00:13.5]} 36. Kc3
{[%clk 0:01:00.6]} 36... Red5 {[%clk 0:00:07.5]} 37. a3 {[%clk 0:00:53.3]} 37...
Ne6 {[%clk 0:00:07.2]} 38. Kb3 {[%clk 0:00:47.1]} 38... Rb8+ {[%clk 0:00:06.1]}
39. Ka2 {[%clk 0:00:47.4]} 39... Rdb5 {[%clk 0:00:06.1]} 40. Re2 {[%clk
0:00:45.4]} 40... Qg7 {[%clk 0:00:05.8]} 41. Nc3 {[%clk 0:00:43.4]} 41... Bf6
{[%clk 0:00:04]} 42. Nxb5 {[%clk 0:00:42.1]} 1-0

[Event "*** SCC Grand Prix: Titled Tuesday Blitz"]
[Site "Chess.com"]
[Date "2020.10.13"]
[Round "4"]
[White "SophieNikoladze"]
[Black "Sesleria"]
[Result "1-0"]
[WhiteElo "2246"]
[BlackElo "2026"]
[TimeControl "180+1"]
[EndTime "10:39:23 PDT"]
[Termination "SophieNikoladze won by resignation"]

1. d4 {[%clk 0:03:00.9]} 1... Nf6 {[%clk 0:02:59.6]} 2. Nf3 {[%clk 0:03:00.9]}
2... e6 {[%clk 0:02:57.2]} 3. e3 {[%clk 0:03:00.9]} 3... b6 {[%clk 0:02:56.5]}
4. Bd3 {[%clk 0:03:00.9]} 4... Bb7 {[%clk 0:02:56.6]} 5. c4 {[%clk 0:03:01.5]}
5... c5 {[%clk 0:02:56]} 6. Nc3 {[%clk 0:03:01.8]} 6... Be7 {[%clk 0:02:54.4]}
7. O-O {[%clk 0:03:01.1]} 7... O-O {[%clk 0:02:52.8]} 8. b3 {[%clk 0:03:01.6]}
8... cxd4 {[%clk 0:02:51.4]} 9. exd4 {[%clk 0:02:58.4]} 9... d5 {[%clk
0:02:51.3]} 10. Bb2 {[%clk 0:02:57.1]} 10... Nc6 {[%clk 0:02:22.1]} 11. cxd5
{[%clk 0:02:52.2]} 11... Nxd5 {[%clk 0:02:19.6]} 12. Nxd5 {[%clk 0:02:51.2]}
12... Qxd5 {[%clk 0:02:18.2]} 13. Qe2 {[%clk 0:02:50.7]} 13... Rfd8 {[%clk
0:01:55.6]} 14. Bc4 {[%clk 0:02:48.8]} 14... Qh5 {[%clk 0:01:48.6]} 15. Rfe1
{[%clk 0:02:38.2]} 15... Bf6 {[%clk 0:01:16.3]} 16. Rad1 {[%clk 0:02:29.9]}
16... Nb4 {[%clk 0:01:12.6]} 17. a3 {[%clk 0:02:24.5]} 17... Nd5 {[%clk
0:01:12]} 18. Ne5 {[%clk 0:02:23.8]} 18... Qxe2 {[%clk 0:01:10.1]} 19. Bxe2
{[%clk 0:02:22.1]} 19... Rac8 {[%clk 0:01:02.2]} 20. Bf3 {[%clk 0:02:20.7]}
20... Rc2 {[%clk 0:01:00.2]} 21. Re2 {[%clk 0:02:15.2]} 21... Rxe2 {[%clk
0:00:52.2]} 22. Bxe2 {[%clk 0:02:14.9]} 22... Nf4 {[%clk 0:00:52.2]} 23. Bf3
{[%clk 0:02:10.5]} 23... Bxe5 {[%clk 0:00:43.3]} 24. dxe5 {[%clk 0:01:50]} 24...
Rxd1+ {[%clk 0:00:43.1]} 25. Bxd1 {[%clk 0:01:49.5]} 25... Nxg2 {[%clk
0:00:38.7]} 26. Bc1 {[%clk 0:01:48.2]} 26... Nh4 {[%clk 0:00:37.9]} 27. f4
{[%clk 0:01:36.4]} 27... Kf8 {[%clk 0:00:34]} 28. Kf2 {[%clk 0:01:35.3]} 28...
Bd5 {[%clk 0:00:33.3]} 29. Bd2 {[%clk 0:01:33.2]} 29... a5 {[%clk 0:00:30.8]}
30. Be3 {[%clk 0:01:32.5]} 30... b5 {[%clk 0:00:30.4]} 31. Bb6 {[%clk
0:01:31.2]} 31... a4 {[%clk 0:00:25]} 32. bxa4 {[%clk 0:01:30.6]} 32... bxa4
{[%clk 0:00:23.5]} 33. Bxa4 {[%clk 0:01:30.3]} 33... Ng6 {[%clk 0:00:21.9]} 34.
Bc5+ {[%clk 0:01:29.5]} 34... Kg8 {[%clk 0:00:21.6]} 35. Ke3 {[%clk 0:01:26.9]}
35... Nh4 {[%clk 0:00:17]} 36. Bb5 {[%clk 0:01:23.3]} 36... Ng2+ {[%clk
0:00:16.9]} 37. Kd4 {[%clk 0:01:21.4]} 37... Nxf4 {[%clk 0:00:17.1]} 38. a4
{[%clk 0:01:21.7]} 38... g5 {[%clk 0:00:16.6]} 39. a5 {[%clk 0:01:21]} 39... h5
{[%clk 0:00:16.7]} 40. a6 {[%clk 0:01:20]} 40... g4 {[%clk 0:00:16.6]} 41. Bd7
{[%clk 0:01:19.7]} 41... Ba8 {[%clk 0:00:15.5]} 42. Bc8 {[%clk 0:01:19.2]} 42...
Nd5 {[%clk 0:00:14]} 43. Bb7 {[%clk 0:01:18.9]} 43... Nc7 {[%clk 0:00:13.9]} 44.
Bd6 {[%clk 0:01:18.3]} 44... Bxb7 {[%clk 0:00:13.2]} 45. axb7 {[%clk 0:01:17.5]}
45... Na6 {[%clk 0:00:13.1]} 46. b8=Q+ {[%clk 0:01:16.4]} 46... Nxb8 {[%clk
0:00:13.3]} 47. Bxb8 {[%clk 0:01:16.4]} 47... Kg7 {[%clk 0:00:14.1]} 48. Ke3
{[%clk 0:01:15.8]} 48... Kg6 {[%clk 0:00:15]} 49. Kf4 {[%clk 0:01:15.7]} 49...
f6 {[%clk 0:00:14.5]} 50. exf6 {[%clk 0:01:11.2]} 50... Kxf6 {[%clk 0:00:15.4]}
51. Be5+ {[%clk 0:01:10.5]} 51... Kg6 {[%clk 0:00:15.6]} 52. Bd4 {[%clk
0:01:07.7]} 52... Kh6 {[%clk 0:00:15.7]} 53. Bf6 {[%clk 0:01:04.9]} 53... Kg6
{[%clk 0:00:15.7]} 54. Bh4 {[%clk 0:01:04]} 54... Kh6 {[%clk 0:00:15.5]} 55. Ke5
{[%clk 0:01:02.1]} 55... Kg6 {[%clk 0:00:14.4]} 56. Kxe6 {[%clk 0:01:02.2]}
56... Kg7 {[%clk 0:00:13]} 57. Kf5 {[%clk 0:01:01.8]} 57... Kh6 {[%clk
0:00:12.1]} 58. Kf6 {[%clk 0:01:02]} 1-0

[Event "*** SCC Grand Prix: Titled Tuesday Blitz"]
[Site "Chess.com"]
[Date "2020.10.13"]
[Round "4"]
[White "RaunakSadhwani2005"]
[Black "Revnov"]
[Result "1-0"]
[WhiteElo "2957"]
[BlackElo "2702"]
[TimeControl "180+1"]
[EndTime "10:39:24 PDT"]
[Termination "RaunakSadhwani2005 won on time"]

1. c4 {[%clk 0:03:00.9]} 1... e6 {[%clk 0:02:58.8]} 2. Nf3 {[%clk 0:03:00.6]}
2... d5 {[%clk 0:02:59.2]} 3. d4 {[%clk 0:03:00.9]} 3... c6 {[%clk 0:02:59.4]}
4. g3 {[%clk 0:03:00.9]} 4... f5 {[%clk 0:02:58.9]} 5. Bg2 {[%clk 0:03:01.4]}
5... Nf6 {[%clk 0:02:59.5]} 6. O-O {[%clk 0:03:01.8]} 6... Bd6 {[%clk 0:03:00]}
7. Na3 {[%clk 0:02:54.2]} 7... O-O {[%clk 0:02:57.3]} 8. Nc2 {[%clk 0:02:54.4]}
8... Nbd7 {[%clk 0:02:51.1]} 9. Nce1 {[%clk 0:02:54.3]} 9... dxc4 {[%clk
0:02:48.7]} 10. a4 {[%clk 0:02:45.5]} 10... Nd5 {[%clk 0:02:35.5]} 11. a5 {[%clk
0:02:41.4]} 11... c5 {[%clk 0:01:40.9]} 12. Qa4 {[%clk 0:02:20.7]} 12... Rb8
{[%clk 0:01:22.2]} 13. Qxc4 {[%clk 0:02:18.6]} 13... b5 {[%clk 0:01:22.4]} 14.
axb6 {[%clk 0:02:16.2]} 14... N7xb6 {[%clk 0:01:22.5]} 15. Qc2 {[%clk
0:02:15.2]} 15... Nb4 {[%clk 0:01:18.2]} 16. Qd1 {[%clk 0:02:13.5]} 16... Ba6
{[%clk 0:01:14.3]} 17. Nc2 {[%clk 0:02:09.3]} 17... N6d5 {[%clk 0:00:52.9]} 18.
Ng5 {[%clk 0:02:02]} 18... Qc8 {[%clk 0:00:46.7]} 19. Nxb4 {[%clk 0:01:39.7]}
19... Nxb4 {[%clk 0:00:46.1]} 20. d5 {[%clk 0:01:38.3]} 20... e5 {[%clk
0:00:38]} 21. Ne6 {[%clk 0:01:36.5]} 21... Rf7 {[%clk 0:00:35.8]} 22. Bd2 {[%clk
0:01:29.5]} 22... Bb5 {[%clk 0:00:31.7]} 23. Bc3 {[%clk 0:01:29.2]} 23... a6
{[%clk 0:00:30.1]} 24. f4 {[%clk 0:01:26.2]} 24... exf4 {[%clk 0:00:25.9]} 25.
gxf4 {[%clk 0:01:27.1]} 25... Qd7 {[%clk 0:00:23.7]} 26. Rf3 {[%clk 0:01:24]}
26... Re8 {[%clk 0:00:23.3]} 27. Rg3 {[%clk 0:01:22]} 27... Bf8 {[%clk
0:00:21.7]} 28. e4 {[%clk 0:01:15.8]} 28... Bc4 {[%clk 0:00:18.9]} 29. b3 {[%clk
0:01:11.4]} 29... Rxe6 {[%clk 0:00:12.6]} 30. bxc4 {[%clk 0:01:01]} 30... Rxe4
{[%clk 0:00:10.4]} 31. Bxe4 {[%clk 0:01:01.2]} 31... fxe4 {[%clk 0:00:11.3]} 32.
Qg4 {[%clk 0:00:56.6]} 32... Qd6 {[%clk 0:00:05]} 33. f5 {[%clk 0:00:50.2]}
33... Nd3 {[%clk 0:00:04.2]} 34. Qxe4 {[%clk 0:00:43.3]} 34... Nf4 {[%clk
0:00:04.2]} 35. Be5 {[%clk 0:00:40.3]} 35... Re7 {[%clk 0:00:04.4]} 36. Re1
{[%clk 0:00:29]} 36... Qh6 {[%clk 0:00:02.7]} 37. d6 {[%clk 0:00:23.3]} 37...
Re8 {[%clk 0:00:01.1]} 38. d7 {[%clk 0:00:22]} 1-0

[Event "*** SCC Grand Prix: Titled Tuesday Blitz"]
[Site "Chess.com"]
[Date "2020.10.13"]
[Round "4"]
[White "TC2304"]
[Black "mr65"]
[Result "1/2-1/2"]
[WhiteElo "2258"]
[BlackElo "2150"]
[TimeControl "180+1"]
[EndTime "10:39:24 PDT"]
[Termination "Game drawn by repetition"]

1. d4 {[%clk 0:03:00.9]} 1... Nf6 {[%clk 0:02:59.4]} 2. Bg5 {[%clk 0:03:01.5]}
2... d5 {[%clk 0:02:57.1]} 3. Nd2 {[%clk 0:03:01.4]} 3... e6 {[%clk 0:02:50.6]}
4. e4 {[%clk 0:03:01.1]} 4... h6 {[%clk 0:02:49.9]} 5. Bxf6 {[%clk 0:02:56.5]}
5... Qxf6 {[%clk 0:02:49.7]} 6. Ngf3 {[%clk 0:02:54.2]} 6... dxe4 {[%clk
0:02:47.3]} 7. Nxe4 {[%clk 0:02:53.8]} 7... Qd8 {[%clk 0:02:46.7]} 8. Bd3 {[%clk
0:02:46.4]} 8... Be7 {[%clk 0:02:46.4]} 9. Qe2 {[%clk 0:02:44.5]} 9... Nd7
{[%clk 0:02:39.6]} 10. h4 {[%clk 0:02:32.1]} 10... c6 {[%clk 0:02:37]} 11. g4
{[%clk 0:02:30.3]} 11... Nf6 {[%clk 0:02:31]} 12. Nxf6+ {[%clk 0:02:22.4]} 12...
gxf6 {[%clk 0:02:21.9]} 13. O-O-O {[%clk 0:02:17.6]} 13... Qc7 {[%clk
0:02:21.3]} 14. Kb1 {[%clk 0:02:05.9]} 14... Bd7 {[%clk 0:02:20.8]} 15. g5
{[%clk 0:01:58.8]} 15... hxg5 {[%clk 0:02:18.1]} 16. hxg5 {[%clk 0:01:58.9]}
16... O-O-O {[%clk 0:02:17.4]} 17. gxf6 {[%clk 0:01:54.5]} 17... Bxf6 {[%clk
0:02:15.7]} 18. Ne5 {[%clk 0:01:54.9]} 18... Bxe5 {[%clk 0:02:07]} 19. dxe5
{[%clk 0:01:54.9]} 19... c5 {[%clk 0:02:04.3]} 20. Rdg1 {[%clk 0:01:42.1]} 20...
Bc6 {[%clk 0:01:57]} 21. Rxh8 {[%clk 0:01:39.9]} 21... Rxh8 {[%clk 0:01:55.8]}
22. f4 {[%clk 0:01:24]} 22... Rh1 {[%clk 0:01:50]} 23. Rxh1 {[%clk 0:01:19.8]}
23... Bxh1 {[%clk 0:01:49]} 24. Qh5 {[%clk 0:01:05.2]} 24... Bd5 {[%clk
0:01:34.7]} 25. Qh8+ {[%clk 0:00:54.3]} 25... Qd8 {[%clk 0:01:31.4]} 26. Qg7
{[%clk 0:00:53.2]} 26... Qd7 {[%clk 0:01:10.3]} 27. Qf8+ {[%clk 0:00:43.5]}
27... Kc7 {[%clk 0:01:06.2]} 28. Qxc5+ {[%clk 0:00:43.7]} 28... Kb8 {[%clk
0:01:06.2]} 29. a3 {[%clk 0:00:28.1]} 29... b6 {[%clk 0:01:05.8]} 30. Qf8+
{[%clk 0:00:23.2]} 30... Kb7 {[%clk 0:01:04.9]} 31. b3 {[%clk 0:00:20.1]} 31...
a5 {[%clk 0:01:01.4]} 32. Kb2 {[%clk 0:00:15.6]} 32... Bf3 {[%clk 0:01:00.5]}
33. Qh6 {[%clk 0:00:12.7]} 33... Qd4+ {[%clk 0:00:59]} 34. Ka2 {[%clk
0:00:13.3]} 34... Be4 {[%clk 0:00:53.8]} 35. Qg7 {[%clk 0:00:11.6]} 35... Bxd3
{[%clk 0:00:52.1]} 36. Qxf7+ {[%clk 0:00:11.8]} 36... Ka6 {[%clk 0:00:51.2]} 37.
cxd3 {[%clk 0:00:11]} 37... Qxd3 {[%clk 0:00:45.7]} 38. Qc7 {[%clk 0:00:10.9]}
38... Qd2+ {[%clk 0:00:44.2]} 39. Kb1 {[%clk 0:00:11]} 39... Qxf4 {[%clk
0:00:43.4]} 40. Qc8+ {[%clk 0:00:08.6]} 40... Ka7 {[%clk 0:00:42.7]} 41. Qd7+
{[%clk 0:00:08.4]} 41... Ka6 {[%clk 0:00:41.8]} 42. Qxe6 {[%clk 0:00:08.9]}
42... Qf1+ {[%clk 0:00:40.6]} 43. Kc2 {[%clk 0:00:09.3]} 43... Qe2+ {[%clk
0:00:40.5]} 44. Kc3 {[%clk 0:00:09.8]} 44... Qe3+ {[%clk 0:00:40.3]} 45. Kc4
{[%clk 0:00:10.2]} 45... Qe4+ {[%clk 0:00:40.1]} 46. Kc3 {[%clk 0:00:08.6]}
46... Qe3+ {[%clk 0:00:40]} 47. Kc2 {[%clk 0:00:08.7]} 47... Qe2+ {[%clk
0:00:39.8]} 48. Kc3 {[%clk 0:00:09.3]} 48... Qe3+ {[%clk 0:00:39.7]} 1/2-1/2